bitfinex/quotes_BTCUSD_20220211
["timestamp","ask_amount","ask_price","bid_price","bid_amount"]
[1644543942721,0.19815735,43125.0,43119.0,0.057998]
[1644543942920,0.19815735,43125.0,43124.0,0.0678375]
[1644543943120,0.20045939,43126.0,43119.0,0.115994]
[1644543943321,0.27345848,43125.0,43119.0,0.115994]
[1644543943520,0.20045939,43126.0,43119.0,0.115994]
[1644543943720,0.01,43129.0,43120.0,0.24241]
[1644543943721,0.19815735,43127.0,43120.0,0.24241]
[1644543943921,0.00057558,43125.0,43120.0,0.242407]
[1644543944121,0.00057558,43125.0,43122.0,0.057995]
[1644543944322,0.00057558,43125.0,43123.0,0.32483632]
[1644543944522,0.00057558,43125.0,43124.0,0.242383]
[1644543944726,0.00057558,43125.0,43123.0,0.13848107]
[1644543944980,0.32889294,43126.0,43123.0,0.13848107]
[1644543945174,0.3294692,43126.0,43123.0,0.13848107]
[1644543945373,0.00057626,43126.0,43123.0,0.13848107]
[1644543945774,0.00057626,43126.0,43123.0,0.08244632]
[1644543945974,0.01,43129.0,43123.0,0.08244632]
[1644543946374,0.00057626,43127.0,43123.0,0.08244632]
[1644543946575,0.00057626,43127.0,43124.0,0.5588743]
[1644543947175,0.01,43129.0,43124.0,0.5588743]
[1644543947382,0.01,43129.0,43126.0,0.56774555]
[1644543947676,0.00057626,43128.0,43127.0,0.58531514]
[1644543947875,0.00057626,43128.0,43127.0,0.82767714]
[1644543948279,0.00747626,43129.0,43128.0,0.242356]
[1644543948827,0.00747626,43129.0,43128.0,0.72776967]
[1644543949627,0.12851376,43138.0,43129.0,1.0]
[1644543949827,0.4426,43140.0,43137.0,0.0761938]
[1644543950429,0.4426,43140.0,43131.0,0.016626]
[1644543950729,0.4426,43140.0,43137.0,0.057972]
[1644543951030,0.5,43140.0,43138.0,0.242284]
[1644543951230,0.5,43140.0,43138.0,0.3228179]
[1644543951635,0.24769622,43148.0,43147.0,0.02973083]
[1644543951834,0.35,43148.0,43144.0,0.11595452]
[1644543952030,0.35,43148.0,43139.0,0.0425]
[1644543952031,0.57199913,43145.0,43139.0,0.0425]
[1644543952229,0.324882,43143.0,43140.0,0.115978]
[1644543952676,0.58681997,43142.0,43140.0,0.115978]
[1644543953073,0.06893734,43141.0,43140.0,0.115978]
[1644543953274,0.06893734,43141.0,43134.0,0.0464]
[1644543953275,0.324882,43140.0,43134.0,0.0464]
[1644543953474,0.06893734,43141.0,43137.0,0.11596608]
[1644543953676,0.324882,43140.0,43137.0,0.11596608]
[1644543954075,0.324882,43139.0,43138.0,0.115973]
[1644543954274,0.324882,43139.0,43138.0,0.289923]
[1644543954474,0.06893734,43141.0,43138.0,0.289923]
[1644543954874,0.06953757,43141.0,43138.0,0.289923]
[1644543955277,0.324882,43140.0,43138.0,0.289923]
[1644543955475,0.27924634,43140.0,43139.0,0.057985]
[1644543955679,0.60412834,43140.0,43139.0,0.057985]
[1644543955876,0.324882,43139.0,43129.0,0.10129384]
[1644543956076,0.324882,43139.0,43131.0,0.05]
[1644543956622,0.25256705,43133.0,43131.0,0.05]
[1644543956822,0.25256705,43133.0,43131.0,0.107997]
[1644543957224,0.25256705,43133.0,43132.0,0.11598227]
[1644543957422,0.324882,43137.0,43132.0,0.11598227]
[1644543957624,0.324882,43137.0,43132.0,0.23196827]
[1644543957926,0.224882,43137.0,43133.0,0.11598374]
[1644543958222,0.06585589,43134.0,43133.0,0.057993]
[1644543958422,0.00046765,43137.0,43133.0,0.324799]
[1644543958622,0.00046765,43137.0,43132.0,0.23196827]
[1644543958823,0.00046765,43137.0,43134.0,0.05799]
[1644543959023,0.324799,43136.0,43134.0,0.05799]
[1644543959725,0.324799,43136.0,43134.0,0.11598]
[1644543959979,0.00046766,43138.0,43137.0,0.017523]
[1644543960273,0.00046766,43138.0,43137.0,0.067523]
[1644543960475,0.20763545,43149.0,43140.0,0.057974]
[1644543960476,0.19763545,43148.0,43140.0,0.057974]
[1644543960672,0.19763545,43148.0,43141.0,0.18362041]
[1644543960673,0.324799,43146.0,43141.0,0.18362041]
[1644543960872,0.324799,43146.0,43142.0,0.05797374]
[1644543961073,0.324799,43145.0,43142.0,0.05797374]
[1644543961272,0.00240053,43147.0,43142.0,0.05797374]
[1644543961673,0.324799,43148.0,43142.0,0.05797374]
[1644543961874,0.324799,43148.0,43144.0,0.057977]
[1644543962073,0.324799,43148.0,43145.0,0.05797464]
[1644543962474,0.24712917,43151.0,43145.0,0.05797464]
[1644543962675,0.02,43153.0,43145.0,0.10797464]
[1644543962876,0.02,43153.0,43147.0,0.324781]
[1644543963078,0.02,43153.0,43147.0,0.057963]
[1644543963276,0.00046766,43150.0,43146.0,0.324772]
[1644543963476,0.00046766,43150.0,43149.0,0.08772749]
[1644543963741,0.00046766,43150.0,43149.0,0.017465]
[1644543964238,0.02,43153.0,43149.0,0.017465]
[1644543964438,0.02,43153.0,43148.0,0.28981929]
[1644543964439,0.02,43153.0,43150.0,0.38270791]
[1644543964639,0.01546766,43153.0,43151.0,0.017462]
[1644543964838,0.01546766,43153.0,43150.0,0.11593391]
[1644543965041,0.324772,43152.0,43150.0,0.11593391]
[1644543965440,0.01546766,43153.0,43151.0,0.0870304]
[1644543965641,0.01546766,43153.0,43152.0,0.324764]
[1644543965938,0.01546766,43153.0,43152.0,0.44069509]
[1644543966739,0.01046766,43153.0,43152.0,0.44069509]
[1644543966940,0.324772,43158.0,43153.0,0.115928]
[1644543967140,0.324772,43158.0,43154.0,0.17389]
[1644543967582,0.324772,43158.0,43155.0,0.11592389]
[1644543967981,0.324772,43158.0,43155.0,0.23185089]
[1644543967982,0.08458515,43156.0,43155.0,0.23185089]
[1644543968183,0.324772,43157.0,43155.0,0.23185089]
[1644543968980,0.324772,43157.0,43155.0,0.28981289]
[1644543969182,0.00060018,43158.0,43156.0,0.057967]
[1644543969382,0.00060018,43158.0,43156.0,0.173892]
[1644543970081,0.324772,43158.0,43156.0,0.173892]
[1644543970281,0.24712917,43163.0,43157.0,0.10795729]
[1644543970282,0.324772,43162.0,43157.0,0.10795729]
[1644543970482,0.0004673,43159.0,43150.0,0.36660371]
[1644543970685,0.324772,43158.0,43155.0,0.05]
[1644543970884,0.0004673,43159.0,43155.0,0.05]
[1644543971081,0.24869622,43158.0,43157.0,0.07792461]
[1644543971324,0.24869622,43158.0,43157.0,0.05795729]
[1644543971524,0.57346822,43158.0,43156.0,0.10188101]
[1644543972224,0.63142722,43158.0,43156.0,0.10188101]
[1644543972423,0.82886151,43158.0,43156.0,0.10188101]
[1644543973024,0.87855639,43158.0,43155.0,0.107961]
[1644543973228,1.19539989,43158.0,43146.0,0.43034386]
[1644543973426,0.28083249,43151.0,43149.0,0.05]
[1644543973626,0.60560449,43151.0,43149.0,0.05]
[1644543974325,0.33641782,43150.0,43149.0,0.05]
[1644543974629,0.382744,43151.0,43149.0,0.05]
[1644543975084,0.19748901,43154.0,43150.0,0.057964]
[1644543975282,0.324772,43153.0,43150.0,0.057964]
[1644543975482,0.19808951,43154.0,43151.0,0.06596239]
[1644543975682,0.0006005,43154.0,43151.0,0.06596239]
[1644543975883,0.24712917,43158.0,43151.0,0.06596239]
[1644543976081,0.24712917,43158.0,43152.0,0.115925]
[1644543976082,0.57190117,43156.0,43152.0,0.115925]
[1644543977680,0.057965,43155.0,43152.0,0.115925]
[1644543977880,0.57190117,43156.0,43152.0,0.115925]
[1644543977881,0.24712917,43156.0,43152.0,0.115925]
[1644543978080,0.24712917,43156.0,43152.0,0.11592536]
[1644543978280,0.23569867,43156.0,43153.0,0.440694]
[1644543978484,0.23569867,43156.0,43154.0,0.115921]
[1644543978731,0.324772,43155.0,43154.0,0.115921]
[1644543979130,0.324772,43157.0,43154.0,0.115921]
[1644543979732,0.6220682,43157.0,43155.0,0.173887]
[1644543979935,0.324772,43156.0,43155.0,0.231848]
[1644543980133,0.00046675,43158.0,43155.0,0.55662]
[1644543980333,0.29776295,43158.0,43155.0,0.231848]
[1644543980533,0.324772,43157.0,43155.0,0.461848]
[1644543980732,0.00046675,43158.0,43155.0,0.57776316]
[1644543980932,0.29757847,43160.0,43155.0,0.57776316]
[1644543981136,0.324772,43159.0,43156.0,0.115917]
[1644543981333,0.2972962,43158.0,43157.0,0.0579603]
[1644543981534,0.2972962,43159.0,43157.0,0.0579603]
[1644543981737,0.34561056,43161.0,43157.0,0.05]
[1644543981738,0.55423169,43158.0,43157.0,0.05]
[1644543981935,0.22945969,43158.0,43157.0,0.05]
[1644543982134,0.324772,43159.0,43157.0,0.05]
[1644543982335,0.34561056,43161.0,43157.0,0.107965]
[1644543982336,0.34561056,43160.0,43157.0,0.107965]
[1644543982575,0.324772,43160.0,43159.0,0.057962]
[1644543982875,0.34561056,43160.0,43159.0,0.057962]
[1644543983274,0.324772,43159.0,43158.0,0.05]
[1644543983778,0.67087841,43160.0,43159.0,0.057962]
[1644543984378,0.34610562,43160.0,43159.0,0.057962]
[1644543984577,0.34610562,43160.0,43157.0,0.115918]
[1644543984578,0.374755,43160.0,43157.0,0.115918]
[1644543984781,0.62394183,43159.0,43155.0,0.06661293]
[1644543984977,0.29918683,43158.0,43155.0,0.06661293]
[1644543985180,0.324755,43157.0,43155.0,0.06661293]
[1644543985377,1.0750424,43157.0,43155.0,0.12459493]
[1644543985579,0.29918683,43156.0,43155.0,0.12459493]
[1644543985778,0.62394183,43156.0,43155.0,0.12459493]
[1644543985979,1.274755,43155.0,43149.0,0.00045161]
[1644543986221,0.324755,43153.0,43149.0,0.00045161]
[1644543986430,0.95,43155.0,43149.0,0.00045161]
[1644543986431,0.67102467,43151.0,43149.0,0.05842661]
[1644543986623,0.29918683,43152.0,43151.0,0.324755]
[1644543986624,0.34626967,43152.0,43151.0,0.324755]
[1644543987123,0.34626967,43154.0,43151.0,0.40162009]
[1644543987523,0.34626967,43155.0,43151.0,0.45958529]
[1644543987722,0.34626967,43155.0,43152.0,0.139969]
[1644543987922,0.34626967,43155.0,43153.0,0.173883]
[1644543988123,0.34626967,43156.0,43153.0,0.173883]
[1644543988422,0.67102467,43155.0,43153.0,0.173883]
[1644543988623,0.34626967,43154.0,43153.0,0.231844]
[1644543988822,0.34626967,43154.0,43153.0,0.556599]
[1644543989026,0.38381971,43154.0,43153.0,0.231844]
[1644543989224,0.34632112,43154.0,43153.0,0.255864]
[1644543989423,0.34632112,43155.0,43153.0,0.197903]
[1644543989724,0.34632112,43155.0,43154.0,0.324755]
[1644543989986,0.38331176,43155.0,43154.0,0.024019]
[1644543990178,0.34691046,43156.0,43154.0,0.0819796]
[1644543990380,0.0005559,43156.0,43155.0,0.324747]
[1644543990578,0.0005559,43156.0,43153.0,0.24356097]
[1644543990579,0.29685025,43156.0,43153.0,0.24356097]
[1644543990776,0.29685025,43155.0,43154.0,0.024018]
[1644543990976,0.34635456,43157.0,43154.0,0.024018]
[1644543990977,0.34635456,43156.0,43154.0,0.024018]
[1644543991178,0.34635456,43156.0,43155.0,0.05796]
[1644543991378,0.00055904,43157.0,43155.0,0.05796]
[1644543991582,0.00055904,43157.0,43156.0,0.024015]
[1644543991780,0.06442985,43157.0,43156.0,0.024015]
[1644543991980,0.06442985,43157.0,43147.0,0.05]
[1644543991981,2.67223337,43148.0,43147.0,0.05]
[1644543992181,2.67223337,43148.0,43137.0,0.05]
[1644543992182,0.324762,43147.0,43137.0,0.05]
[1644543992378,0.324762,43145.0,43140.0,0.05797999]
[1644543992579,0.31902137,43144.0,43140.0,0.173938]
[1644543992778,0.25631585,43141.0,43140.0,0.173938]
[1644543992978,0.7181765,43143.0,43140.0,0.173938]
[1644543992979,0.39915513,43143.0,43140.0,0.173938]
[1644543993179,0.324762,43142.0,43140.0,0.1743897]
[1644543993380,0.39915513,43143.0,43132.0,1.10499581]
[1644543993582,0.19802153,43134.0,43133.0,0.05798668]
[1644543993824,0.24752691,43135.0,43134.0,0.057989]
[1644543994226,0.23638744,43136.0,43134.0,0.057989]
[1644543994423,0.43356964,43135.0,43134.0,0.057989]
[1644543994624,0.43356964,43135.0,43133.0,0.48777377]
[1644543994822,0.36055301,43135.0,43133.0,0.231953]
[1644543995423,0.33060401,43136.0,43133.0,0.231953]
[1644543995823,0.33060401,43136.0,43134.0,0.28325603]
[1644543996224,0.33060401,43136.0,43135.0,0.07186294]
[1644543996425,0.2970323,43136.0,43135.0,0.07186294]
[1644543996625,0.2970323,43136.0,43134.0,0.28325603]
[1644543996827,0.08515092,43141.0,43134.0,0.39923003]
[1644543996828,0.2970323,43138.0,43134.0,0.39923003]
[1644543997225,0.28778748,43138.0,43134.0,0.39923003]
[1644543997671,0.28778748,43138.0,43134.0,0.115974]
[1644543997970,0.28778748,43138.0,43134.0,0.19021326]
[1644543998172,0.28778748,43138.0,43134.0,0.1906639]
[1644543998571,0.28778748,43138.0,43134.0,0.11642464]
[1644543999070,0.324762,43137.0,43134.0,0.115974]
[1644543999271,0.34657127,43140.0,43134.0,0.11642464]
[1644543999476,0.324762,43139.0,43134.0,0.11642464]
[1644543999872,0.324762,43138.0,43134.0,0.11642464]
[1644544000071,0.34657127,43140.0,43134.0,0.37804143]
[1644544000272,0.34657127,43140.0,43135.0,0.05798382]
[1644544000474,0.324762,43139.0,43136.0,0.057985]
[1644544000673,0.324762,43139.0,43136.0,0.11597]
[1644544001073,0.324762,43138.0,43136.0,0.11597]
[1644544001326,0.324762,43139.0,43136.0,0.11597]
[1644544002131,0.67133327,43139.0,43136.0,0.11097]
[1644544002628,0.67133327,43139.0,43136.0,0.34097]
[1644544003030,0.34657127,43138.0,43136.0,0.34097]
[1644544003233,0.3858986,43137.0,43136.0,0.34097]
[1644544003528,0.7106606,43137.0,43136.0,0.34097]
[1644544004634,0.7106606,43137.0,43136.0,0.282985]
[1644544004834,0.99224843,43137.0,43136.0,0.282985]
[1644544005076,0.99224843,43137.0,43133.0,0.115977]
[1644544005077,1.0,43136.0,43133.0,0.115977]
[1644544005276,0.34665639,43134.0,43133.0,0.115977]
[1644544005474,0.630768,43134.0,43133.0,0.115977]
[1644544006175,0.56228539,43134.0,43133.0,0.115977]
[1644544006375,0.382763,43133.0,43129.0,0.116005]
[1644544006576,0.34662788,43132.0,43131.0,0.00039996]
[1644544006775,0.87912462,43132.0,43131.0,0.00039996]
[1644544007375,0.60293092,43132.0,43131.0,0.00039996]
[1644544007576,0.33662823,43129.0,43128.0,0.058008]
[1644544007776,0.66139023,43129.0,43128.0,0.058008]
[1644544007978,1.00804099,43129.0,43128.0,0.058008]
[1644544008177,1.00804099,43129.0,43124.0,0.116016]
[1644544008178,0.324762,43128.0,43124.0,0.116016]
[1644544008379,0.24757689,43125.0,43124.0,0.116016]
[1644544008578,0.31516201,43126.0,43124.0,0.116016]
[1644544008822,0.31516201,43126.0,43124.0,0.11641603]
[1644544008823,0.6219061,43126.0,43124.0,0.11641603]
[1644544009023,0.324771,43126.0,43124.0,0.11641603]
[1644544009425,0.24754352,43125.0,43124.0,0.11641603]
[1644544010023,0.24754352,43125.0,43124.0,0.116016]
[1644544010425,0.63032552,43126.0,43124.0,0.116016]
[1644544010625,0.324771,43124.0,43117.0,0.116016]
[1644544010824,0.19800637,43123.0,43117.0,0.116016]
[1644544011424,0.19800637,43124.0,43117.0,0.116016]
[1644544011623,0.31172705,43123.0,43117.0,0.116016]
[1644544011824,0.39973331,43123.0,43119.0,0.116027]
[1644544012024,0.59773968,43123.0,43119.0,0.116027]
[1644544012482,0.39973331,43123.0,43119.0,0.116027]
[1644544013076,0.07496031,43123.0,43119.0,0.346027]
[1644544013276,0.63959007,43122.0,43119.0,0.346027]
[1644544013478,0.058016,43122.0,43119.0,0.346027]
[1644544013676,0.058016,43122.0,43119.0,0.34647566]
[1644544014684,0.058016,43122.0,43119.0,0.346027]
[1644544014685,0.324773,43121.0,43119.0,0.346027]
[1644544015879,0.324773,43121.0,43113.0,0.38129254]
[1644544016082,0.324773,43121.0,43118.0,0.00044867]
[1644544016339,0.382793,43121.0,43118.0,0.00044867]
[1644544017144,0.3,43120.0,43113.0,0.001]
[1644544017343,1.0,43117.0,43113.0,0.001]
[1644544017541,0.324773,43116.0,43112.0,0.0222]
[1644544017747,0.28415023,43116.0,43112.0,0.0222]
[1644544018140,0.324773,43113.0,43112.0,0.0222]
[1644544018542,1.0,43112.0,43109.0,0.0011]
[1644544018842,1.382814,43112.0,43109.0,0.0011]
[1644544019040,0.382814,43112.0,43109.0,0.0011]
[1644544019840,0.582814,43112.0,43109.0,0.0011]
[1644544020080,0.572814,43112.0,43109.0,0.010385]
[1644544020286,0.572814,43112.0,43109.0,0.0011]
[1644544020877,0.572814,43112.0,43109.0,0.059134]
[1644544021078,0.567814,43112.0,43109.0,0.059134]
[1644544021881,0.567814,43112.0,43109.0,0.0011]
[1644544022083,0.27356606,43111.0,43109.0,0.00154652]
[1644544023080,0.27356606,43111.0,43109.0,0.0011]
[1644544023280,0.567814,43112.0,43109.0,0.0011]
[1644544023723,0.717814,43112.0,43109.0,0.0011]
[1644544023922,0.717814,43112.0,43109.0,0.010386]
[1644544024122,0.717814,43112.0,43109.0,0.0011]
[1644544024322,0.717814,43112.0,43110.0,0.2332]
[1644544026122,0.717814,43112.0,43110.0,0.0032]
[1644544026924,1.324776,43110.0,43108.0,0.0004454]
[1644544027324,0.185,43109.0,43108.0,0.0004454]
[1644544027576,0.78297407,43109.0,43108.0,0.0004454]
[1644544027778,0.45819807,43109.0,43108.0,0.0097314]
[1644544027982,0.324776,43108.0,43105.0,0.0021]
[1644544028183,0.46103699,43109.0,43104.0,0.0011]
[1644544028184,0.324776,43106.0,43104.0,0.0011]
[1644544028377,0.78740903,43105.0,43104.0,0.0011]
[1644544028578,0.78740903,43105.0,43104.0,0.0001]
[1644544028579,0.60240903,43105.0,43104.0,0.0001]
[1644544028782,1.324776,43104.0,43099.0,0.0011]
[1644544028980,0.15857944,43101.0,43096.0,0.00451556]
[1644544029181,0.42738042,43103.0,43096.0,0.00451556]
[1644544029182,0.474776,43098.0,43096.0,0.00451556]
[1644544029382,0.35767329,43097.0,43096.0,0.0043]
[1644544029580,0.68244929,43097.0,43096.0,0.0043]
[1644544030081,0.35767329,43097.0,43096.0,0.0043]
[1644544030280,0.35767329,43097.0,43096.0,0.0021]
[1644544030479,0.324776,43096.0,43095.0,0.00241556]
[1644544030686,0.65420488,43096.0,43094.0,0.002069]
[1644544030882,0.60659548,43095.0,43094.0,0.00185344]
[1644544031081,0.65299548,43095.0,43094.0,0.00185344]
[1644544031725,0.371176,43095.0,43094.0,0.00185344]
[1644544031928,0.19011864,43095.0,43094.0,0.00185344]
[1644544033330,0.14371864,43095.0,43094.0,0.00185344]
[1644544034129,0.0464,43101.0,43094.0,0.00185344]
[1644544034332,0.116096,43104.0,43099.0,0.33299437]
[1644544034532,0.3889,43111.0,43099.0,0.33299437]
[1644544034730,0.3,43110.0,43100.0,0.058031]
[1644544034991,0.324786,43105.0,43102.0,0.058033]
[1644544035589,0.324786,43105.0,43103.0,0.07644429]
[1644544036586,0.324786,43105.0,43103.0,0.13447629]
[1644544036786,0.324786,43105.0,43103.0,0.058032]
[1644544037988,0.39397663,43104.0,43103.0,0.058032]
[1644544038189,0.324786,43104.0,43103.0,0.058032]
[1644544041429,0.51106182,43109.0,43103.0,0.058032]
[1644544041430,0.324786,43105.0,43103.0,0.058032]
[1644544044277,0.66106182,43109.0,43103.0,0.058032]
[1644544044478,0.324786,43105.0,43103.0,0.058032]
[1644544045080,0.31408537,43113.0,43103.0,0.058032]
[1644544045081,0.19800637,43115.0,43104.0,0.36167707]
[1644544045281,0.03363445,43115.0,43107.0,0.05801786]
[1644544045480,0.03363445,43115.0,43108.0,0.294345]
[1644544045877,0.03363445,43115.0,43106.0,0.162432]
[1644544046079,0.3230377,43115.0,43107.0,0.05044431]
[1644544046328,0.3230377,43115.0,43109.0,0.244339]
[1644544046329,0.03363445,43115.0,43109.0,0.244339]
[1644544046532,0.03363445,43115.0,43111.0,0.244326]
[1644544046727,0.03363445,43115.0,43112.0,0.058022]
[1644544046927,0.03363445,43115.0,43113.0,0.244313]
[1644544047129,0.03363445,43115.0,43112.0,0.058022]
[1644544047330,0.02210143,43115.0,43112.0,0.058022]
[1644544047531,0.40055984,43114.0,43112.0,0.058022]
[1644544047731,0.07577384,43114.0,43107.0,0.00042209]
[1644544047930,0.367148,43109.0,43108.0,0.05803]
[1644544048331,0.19800637,43114.0,43108.0,0.05803]
[1644544048532,0.02210143,43115.0,43108.0,0.32248876]
[1644544048733,0.02210143,43115.0,43109.0,0.05802046]
[1644544048930,0.02210143,43115.0,43111.0,0.058022]
[1644544049529,0.02210143,43115.0,43112.0,0.08261304]
[1644544049988,0.19860076,43117.0,43112.0,0.08261304]
[1644544050184,0.19800637,43116.0,43113.0,0.116036]
[1644544050585,0.00059439,43117.0,43113.0,0.116036]
[1644544050787,0.00059439,43117.0,43114.0,0.01253543]
[1644544050788,0.324786,43117.0,43114.0,0.01253543]
[1644544050984,0.0005729,43117.0,43114.0,0.01253543]
[1644544051988,0.0791,43118.0,43115.0,0.244299]
[1644544052191,0.00057291,43118.0,43116.0,0.05800887]
[1644544052387,0.00057291,43118.0,43117.0,0.244285]
[1644544052786,0.00057291,43118.0,43117.0,0.344285]
[1644544052986,0.00057291,43118.0,43117.0,0.52040391]
[1644544053187,0.324786,43123.0,43122.0,0.0638157]
[1644544053588,0.2971351,43125.0,43122.0,0.0638157]
[1644544053832,0.34665076,43127.0,43122.0,0.0638157]
[1644544053833,0.2971351,43127.0,43122.0,0.0638157]
[1644544054031,0.2971351,43128.0,43123.0,0.058001]
[1644544054338,0.2971351,43129.0,43124.0,0.05799972]
[1644544054533,0.01925134,43133.0,43126.0,0.31312978]
[1644544054534,0.2971351,43130.0,43126.0,0.31312978]
[1644544054733,0.00058536,43127.0,43126.0,0.77334428]
[1644544055132,0.00058536,43127.0,43126.0,0.72334428]
[1644544055532,0.29947618,43133.0,43126.0,0.4102145]
[1644544055533,0.2971351,43133.0,43126.0,0.4102145]
[1644544055731,0.00046815,43129.0,43127.0,0.344212]
[1644544055932,0.00046815,43129.0,43128.0,0.0464]
[1644544056130,0.00046815,43129.0,43128.0,0.290607]
[1644544056330,0.00046815,43129.0,43128.0,0.340607]
[1644544056731,0.2971351,43134.0,43128.0,0.45659566]
[1644544056936,0.00046815,43131.0,43129.0,0.11599]
[1644544057133,0.00046815,43131.0,43130.0,0.244192]
[1644544057581,0.00046815,43131.0,43130.0,0.33090589]
[1644544057782,0.00046815,43131.0,43130.0,0.48090589]
[1644544057983,0.2971351,43137.0,43130.0,0.82559746]
[1644544058181,0.00060105,43133.0,43132.0,0.37755551]
[1644544058381,0.00060105,43133.0,43132.0,0.67173451]
[1644544058579,0.00060105,43133.0,43132.0,0.72173451]
[1644544059181,0.2971351,43137.0,43132.0,0.72173451]
[1644544059382,0.00060104,43135.0,43134.0,0.107982]
[1644544059587,0.00060104,43135.0,43134.0,0.448547]
[1644544059780,0.00060104,43135.0,43134.0,0.548547]
[1644544059980,0.00060104,43135.0,43134.0,0.448547]
[1644544060481,0.2971351,43142.0,43138.0,0.05797974]
[1644544060681,0.2971351,43142.0,43140.0,0.244122]
[1644544060881,0.2971351,43142.0,43138.0,0.22033974]
[1644544060882,0.2971351,43142.0,43138.0,0.16235974]
[1644544061083,0.02240377,43143.0,43139.0,0.244128]
[1644544061328,0.02240377,43143.0,43140.0,0.07029983]
[1644544061534,0.02,43143.0,43140.0,0.07029983]
[1644544061828,0.02060101,43143.0,43140.0,0.12827983]
[1644544062234,0.02060101,43143.0,43141.0,0.360073]
[1644544062433,0.02060101,43143.0,43141.0,0.115958]
[1644544062730,0.02,43143.0,43141.0,0.115958]
[1644544063730,0.02,43143.0,43142.0,0.244108]
[1644544064030,0.02,43143.0,43141.0,0.115958]
[1644544064232,0.02,43143.0,43142.0,0.244108]
[1644544070730,0.26804422,43148.0,43141.0,0.03915639]
[1644544070931,0.0877163,43149.0,43142.0,0.057977]
[1644544071131,0.15,43148.0,43144.0,0.057977]
[1644544071332,0.15,43148.0,43144.0,0.03617685]
[1644544072785,0.15,43148.0,43144.0,0.09415068]
[1644544072984,0.15,43148.0,43145.0,0.231896]
[1644544073185,0.15857944,43147.0,43146.0,0.07836121]
[1644544073383,0.15857944,43147.0,43145.0,0.231896]
[1644544073584,0.3480468,43146.0,43145.0,0.231896]
[1644544074183,0.6727688,43146.0,43145.0,0.115948]
[1644544074381,0.3480468,43146.0,43145.0,0.115948]
[1644544074583,0.42486401,43146.0,43145.0,0.115948]
[1644544075486,0.74958601,43146.0,43145.0,0.115948]
[1644544075882,0.74958601,43146.0,43142.0,0.115952]
[1644544076083,0.15857944,43147.0,43144.0,0.27781504]
[1644544076338,0.00055435,43148.0,43144.0,0.057978]
[1644544077140,0.01,43149.0,43146.0,0.08239491]
[1644544077338,0.01,43149.0,43146.0,0.14036691]
[1644544077540,0.00055435,43148.0,43147.0,0.0464]
[1644544078145,0.00055435,43148.0,43147.0,0.5464]
[1644544078338,0.01,43149.0,43147.0,0.5464]
[1644544079040,0.334722,43149.0,43147.0,0.5464]
[1644544079239,0.01,43149.0,43147.0,0.5464]
[1644544079992,0.01,43149.0,43147.0,0.60437]
[1644544080691,0.01,43149.0,43147.0,0.10437]
[1644544083489,0.00057339,43150.0,43147.0,0.10437]
[1644544083729,0.00057339,43150.0,43148.0,0.11592996]
[1644544083931,0.00057339,43150.0,43148.0,0.28982396]
[1644544084431,0.0002815,43155.0,43148.0,0.231859]
[1644544084631,0.32836342,43157.0,43148.0,0.231859]
[1644544084632,0.00055655,43151.0,43149.0,0.057963]
[1644544084832,0.00055655,43151.0,43149.0,0.115927]
[1644544085031,0.00055655,43151.0,43150.0,0.05796358]
[1644544085632,0.0002815,43155.0,43150.0,0.11592558]
[1644544085836,0.03504014,43160.0,43150.0,0.115924]
[1644544085837,0.00055655,43153.0,43150.0,0.115924]
[1644544086037,0.00055655,43153.0,43151.0,0.10436288]
[1644544086234,0.2971351,43162.0,43152.0,0.231831]
[1644544086235,0.30857944,43162.0,43152.0,0.231831]
[1644544086437,0.324722,43156.0,43155.0,0.115914]
[1644544086634,0.324722,43156.0,43150.0,0.057969]
[1644544086635,0.15,43156.0,43150.0,0.057969]
[1644544086835,0.34799873,43154.0,43150.0,0.057969]
[1644544087137,0.05797022,43160.0,43152.0,0.057968]
[1644544087336,0.08189212,43154.0,43152.0,0.057968]
[1644544088384,0.324722,43159.0,43152.0,0.057967]
[1644544088579,0.30900352,43161.0,43154.0,0.057965]
[1644544088580,0.324722,43160.0,43154.0,0.057965]
[1644544088980,0.30857944,43157.0,43144.0,0.008]
[1644544089179,0.00042408,43161.0,43144.0,0.008]
[1644544089180,0.3,43156.0,43145.0,0.5]
[1644544089378,0.25112045,43149.0,43145.0,0.5]
[1644544089581,0.25112045,43149.0,43146.0,0.057978]
[1644544089780,0.39020813,43146.0,43145.0,0.5]
[1644544089979,0.39020813,43146.0,43144.0,0.008]
[1644544090380,0.06926632,43145.0,43144.0,0.008]
[1644544090581,0.06926632,43145.0,43144.0,0.565981]
[1644544090984,0.06926632,43145.0,43144.0,0.065981]
[1644544091629,0.95,43144.0,43142.0,0.01920818]
[1644544091833,0.60699244,43143.0,43142.0,0.01966176]
[1644544092030,0.60699244,43143.0,43142.0,0.00045358]
[1644544092629,0.324722,43143.0,43142.0,0.00045358]
[1644544092828,0.324722,43143.0,43132.0,0.5]
[1644544093028,0.06562476,43135.0,43133.0,0.115978]
[1644544093228,0.06562476,43135.0,43134.0,0.76846407]
[1644544094029,0.33459569,43144.0,43134.0,0.76846407]
[1644544094030,0.35950857,43139.0,43134.0,0.76846407]
[1644544094231,0.057988,43146.0,43144.0,0.01749999]
[1644544094532,0.29476331,43150.0,43144.0,0.01749999]
[1644544094730,0.324722,43149.0,43144.0,0.01749999]
[1644544094987,0.30857944,43146.0,43144.0,0.01749999]
[1644544095182,0.88405938,43145.0,43144.0,0.01749999]
[1644544095379,0.88405938,43145.0,43144.0,0.01795355]
[1644544095779,0.59787462,43145.0,43144.0,0.01795355]
[1644544096379,0.59787462,43145.0,43144.0,0.01749999]
[1644544097182,1.03584099,43145.0,43144.0,0.02677699]
[1644544097481,1.02451871,43145.0,43144.0,0.02677699]
[1644544097681,0.59787462,43145.0,43144.0,0.02677699]
[1644544097883,0.324722,43145.0,43144.0,0.02677699]
[1644544098082,0.6068163,43145.0,43144.0,0.01749999]
[1644544098282,0.324722,43145.0,43144.0,0.01749999]
[1644544099142,0.57412934,43145.0,43144.0,0.01749999]
[1644544099743,0.324722,43145.0,43144.0,0.01749999]
[1644544100544,0.65385849,43145.0,43144.0,0.01749999]
[1644544100946,0.324722,43145.0,43144.0,0.01749999]
[1644544101249,0.324722,43145.0,43144.0,0.02677699]
[1644544101446,0.324722,43145.0,43144.0,0.01749999]